[Event "Titled Tuesday Blitz November 14 Early 2023"]
[White "Garrido, Denis"]
[Black "Zoete, Roelant"]
[WhiteFideId "601217"]
[BlackFideId "40103269"]
[WhiteElo "2355"]
[BlackElo "2458"]
[Result "1/2-1/2"]
[Round "11"]
[TimeControl "180+1"]
[Date "2023.11.14"]
[WhiteClock "0:01:31"]
[BlackClock "0:00:26"]
[Board "110"]

1. e4 {[%clk 0:03:00]}  c5 {[%clk 0:02:58]} 2. Nf3 {[%clk 0:03:01]}  e6 {[%clk 0:02:55]} 3. d4 {[%clk 0:03:00]}  cxd4 {[%clk 0:02:53]} 4. Nxd4 {[%clk 0:03:01]}  Nf6 {[%clk 0:02:54]} 5. Nc3 {[%clk 0:03:01]}  Nc6 {[%clk 0:02:48]} 6. Nxc6 {[%clk 0:03:01]}  bxc6 {[%clk 0:02:47]} 7. e5 {[%clk 0:03:01]}  Nd5 {[%clk 0:02:47]} 8. Ne4 {[%clk 0:03:01]}  Bb7 {[%clk 0:02:39]} 9. Be2 {[%clk 0:02:58]}  c5 {[%clk 0:02:28]} 10. O-O {[%clk 0:02:57]}  Qc7 {[%clk 0:02:28]} 11. f4 {[%clk 0:02:55]}  f5 {[%clk 0:02:22]} 12. Nd6+ {[%clk 0:02:55]}  Bxd6 {[%clk 0:02:20]} 13. exd6 {[%clk 0:02:56]}  Qc6 {[%clk 0:02:18]} 14. Bh5+ {[%clk 0:02:52]}  g6 {[%clk 0:02:17]} 15. Bf3 {[%clk 0:02:53]}  O-O {[%clk 0:02:17]} 16. c4 {[%clk 0:02:47]}  Qxd6 {[%clk 0:02:12]} 17. cxd5 {[%clk 0:02:46]}  exd5 {[%clk 0:02:13]} 18. Be3 {[%clk 0:02:44]}  Rfe8 {[%clk 0:02:09]} 19. Qd2 {[%clk 0:02:38]}  Bc6 {[%clk 0:02:08]} 20. Rac1 {[%clk 0:02:37]}  d4 {[%clk 0:02:07]} 21. Bxc6 {[%clk 0:02:32]}  dxc6 {[%clk 0:02:00]} 22. Bf2 {[%clk 0:02:32]}  Re4 {[%clk 0:01:56]} 23. Rfe1 {[%clk 0:02:17]}  Rae8 {[%clk 0:01:55]} 24. g3 {[%clk 0:02:13]}  Qd5 {[%clk 0:01:45]} 25. b3 {[%clk 0:02:10]}  a5 {[%clk 0:01:38]} 26. Qd3 {[%clk 0:02:09]}  Kh8 {[%clk 0:01:25]} 27. Qc4 {[%clk 0:01:46]}  Rxe1+ {[%clk 0:01:12]} 28. Rxe1 {[%clk 0:01:45]}  Rxe1+ {[%clk 0:01:12]} 29. Bxe1 {[%clk 0:01:46]}  Qe4 {[%clk 0:01:13]} 30. Qxc5 {[%clk 0:01:31]}  Qxe1+ {[%clk 0:01:11]} 31. Kg2 {[%clk 0:01:31]}  Qe2+ {[%clk 0:01:06]} 32. Kh3 {[%clk 0:01:31]}  Qh5+ {[%clk 0:00:33]} 33. Kg2 {[%clk 0:01:31]}  Qe2+ {[%clk 0:00:34]} 34. Kh3 {[%clk 0:01:31]}  Qh5+ {[%clk 0:00:25]} 35. Kg2 {[%clk 0:01:31]}  Qe2+ {[%clk 0:00:26]} 1/2-1/2


[Site "https://www.chess.com"]

[Event "Titled Tuesday Blitz November 14 Early 2023"]
[White "Buchenau, Frank"]
[Black "MIss_MIaMI"]
[WhiteFideId "4604350"]
[WhiteElo "2417"]
[BlackElo "2342"]
[Result "1-0"]
[Round "11"]
[TimeControl "180+1"]
[Date "2023.11.14"]
[WhiteClock "0:00:12"]
[BlackClock "0:00:00"]
[Board "113"]

1. e4 {[%clk 0:02:52]}  c5 {[%clk 0:02:59]} 2. Nf3 {[%clk 0:02:51]}  e6 {[%clk 0:03:00]} 3. d4 {[%clk 0:02:50]}  cxd4 {[%clk 0:03:00]} 4. Nxd4 {[%clk 0:02:49]}  a6 {[%clk 0:02:59]} 5. Bd3 {[%clk 0:02:48]}  Ne7 {[%clk 0:02:57]} 6. O-O {[%clk 0:02:46]}  Nbc6 {[%clk 0:02:56]} 7. c3 {[%clk 0:02:44]}  Qb6 {[%clk 0:02:48]} 8. Nb3 {[%clk 0:02:34]}  Ne5 {[%clk 0:02:37]} 9. Be3 {[%clk 0:02:30]}  Qc7 {[%clk 0:02:37]} 10. f4 {[%clk 0:02:21]}  Nc4 {[%clk 0:02:24]} 11. Bxc4 {[%clk 0:02:19]}  Qxc4 {[%clk 0:02:24]} 12. N1d2 {[%clk 0:02:16]}  Qc7 {[%clk 0:02:18]} 13. Qh5 {[%clk 0:02:03]}  d6 {[%clk 0:02:12]} 14. Rad1 {[%clk 0:01:57]}  g6 {[%clk 0:01:45]} 15. Qh4 {[%clk 0:01:51]}  Bg7 {[%clk 0:01:43]} 16. f5 {[%clk 0:01:49]}  exf5 {[%clk 0:01:43]} 17. Bh6 {[%clk 0:01:41]}  O-O {[%clk 0:01:33]} 18. Bxg7 {[%clk 0:01:40]}  Kxg7 {[%clk 0:01:34]} 19. Nd4 {[%clk 0:01:35]}  fxe4 {[%clk 0:00:48]} 20. Nxe4 {[%clk 0:01:32]}  Ng8 {[%clk 0:00:37]} 21. Nxd6 {[%clk 0:01:23]}  Qb6 {[%clk 0:00:28]} 22. Rf2 {[%clk 0:00:50]}  Be6 {[%clk 0:00:25]} 23. Nxe6+ {[%clk 0:00:39]}  fxe6 {[%clk 0:00:26]} 24. Qd4+ {[%clk 0:00:37]}  Qxd4 {[%clk 0:00:25]} 25. Rxd4 {[%clk 0:00:38]}  b5 {[%clk 0:00:19]} 26. Ne4 {[%clk 0:00:29]}  Rxf2 {[%clk 0:00:17]} 27. Kxf2 {[%clk 0:00:29]}  h6 {[%clk 0:00:14]} 28. Rd7+ {[%clk 0:00:28]}  Kf8 {[%clk 0:00:13]} 29. Nc5 {[%clk 0:00:27]}  Ne7 {[%clk 0:00:10]} 30. Nxe6+ {[%clk 0:00:26]}  Kf7 {[%clk 0:00:10]} 31. Nc7 {[%clk 0:00:25]}  Rc8 {[%clk 0:00:10]} 32. Nd5 {[%clk 0:00:24]}  Ke6 {[%clk 0:00:10]} 33. Nxe7 {[%clk 0:00:22]}  Kxd7 {[%clk 0:00:09]} 34. Nxc8 {[%clk 0:00:23]}  Kxc8 {[%clk 0:00:10]} 35. Ke3 {[%clk 0:00:21]}  Kd7 {[%clk 0:00:11]} 36. Ke4 {[%clk 0:00:22]}  Ke6 {[%clk 0:00:11]} 37. b3 {[%clk 0:00:20]}  g5 {[%clk 0:00:09]} 38. g4 {[%clk 0:00:20]}  a5 {[%clk 0:00:08]} 39. c4 {[%clk 0:00:18]}  bxc4 {[%clk 0:00:09]} 40. bxc4 {[%clk 0:00:18]}  Kd6 {[%clk 0:00:10]} 41. Kd4 {[%clk 0:00:18]}  a4 {[%clk 0:00:09]} 42. a3 {[%clk 0:00:17]}  Kc6 {[%clk 0:00:10]} 43. c5 {[%clk 0:00:17]}  Kc7 {[%clk 0:00:08]} 44. Kd5 {[%clk 0:00:17]}  Kd7 {[%clk 0:00:08]} 45. c6+ {[%clk 0:00:16]}  Kc7 {[%clk 0:00:09]} 46. Kc5 {[%clk 0:00:16]}  Kc8 {[%clk 0:00:10]} 47. Kd6 {[%clk 0:00:16]}  Kd8 {[%clk 0:00:09]} 48. c7+ {[%clk 0:00:16]}  Kc8 {[%clk 0:00:10]} 49. Kc6 {[%clk 0:00:16]}  h5 {[%clk 0:00:09]} 50. gxh5 {[%clk 0:00:16]}  g4 {[%clk 0:00:09]} 51. Kd6 {[%clk 0:00:13]}  g3 {[%clk 0:00:07]} 52. hxg3 {[%clk 0:00:13]}  Kb7 {[%clk 0:00:05]} 53. Kd7 {[%clk 0:00:13]}  Kb6 {[%clk 0:00:04]} 54. c8=Q {[%clk 0:00:13]}  Ka7 {[%clk 0:00:02]} 55. h6 {[%clk 0:00:12]}  Kb6 {[%clk 0:00:00]} 56. h7 {[%clk 0:00:12]} 1-0


[Site "https://www.chess.com"]

[Event "Titled Tuesday Blitz November 14 Early 2023"]
[White "Maect19"]
[Black "Mazurkiewicz, Michal"]
[BlackFideId "1124943"]
[WhiteElo "2328"]
[BlackElo "2426"]
[Result "0-1"]
[Round "11"]
[TimeControl "180+1"]
[Date "2023.11.14"]
[WhiteClock "0:00:16"]
[BlackClock "0:01:04"]
[Board "117"]

1. d4 {[%clk 0:03:00]}  Nf6 {[%clk 0:02:59]} 2. Nf3 {[%clk 0:03:00]}  g6 {[%clk 0:03:00]} 3. c3 {[%clk 0:03:00]}  Bg7 {[%clk 0:03:00]} 4. Bg5 {[%clk 0:03:00]}  h6 {[%clk 0:03:00]} 5. Bh4 {[%clk 0:02:59]}  O-O {[%clk 0:03:00]} 6. Nbd2 {[%clk 0:02:59]}  d5 {[%clk 0:03:00]} 7. Bxf6 {[%clk 0:02:56]}  Bxf6 {[%clk 0:03:00]} 8. e4 {[%clk 0:02:57]}  dxe4 {[%clk 0:03:00]} 9. Nxe4 {[%clk 0:02:58]}  Bg7 {[%clk 0:03:01]} 10. Bc4 {[%clk 0:02:56]}  c6 {[%clk 0:02:59]} 11. O-O {[%clk 0:02:54]}  Nd7 {[%clk 0:02:56]} 12. Re1 {[%clk 0:02:51]}  Nb6 {[%clk 0:02:55]} 13. Bb3 {[%clk 0:02:50]}  a5 {[%clk 0:02:54]} 14. a4 {[%clk 0:02:48]}  Nd5 {[%clk 0:02:54]} 15. Bxd5 {[%clk 0:02:46]}  cxd5 {[%clk 0:02:50]} 16. Nc5 {[%clk 0:02:46]}  b6 {[%clk 0:02:42]} 17. Nd3 {[%clk 0:02:46]}  Bf5 {[%clk 0:02:42]} 18. Nde5 {[%clk 0:02:42]}  Qd6 {[%clk 0:02:38]} 19. Nh4 {[%clk 0:02:29]}  Be6 {[%clk 0:02:29]} 20. Qd3 {[%clk 0:02:22]}  g5 {[%clk 0:01:47]} 21. Nhf3 {[%clk 0:02:18]}  f6 {[%clk 0:01:42]} 22. Ng6 {[%clk 0:02:12]}  Rfe8 {[%clk 0:01:43]} 23. h4 {[%clk 0:02:04]}  Qd7 {[%clk 0:01:36]} 24. h5 {[%clk 0:01:11]}  Bg4 {[%clk 0:01:35]} 25. Qb5 {[%clk 0:01:05]}  Qxb5 {[%clk 0:01:28]} 26. axb5 {[%clk 0:01:06]}  Kf7 {[%clk 0:01:27]} 27. Nfe5+ {[%clk 0:00:51]}  fxe5 {[%clk 0:01:27]} 28. Nxe5+ {[%clk 0:00:52]}  Bxe5 {[%clk 0:01:26]} 29. Rxe5 {[%clk 0:00:52]}  e6 {[%clk 0:01:25]} 30. g3 {[%clk 0:00:51]}  Bxh5 {[%clk 0:01:24]} 31. Kg2 {[%clk 0:00:51]}  Bg6 {[%clk 0:01:22]} 32. Rh1 {[%clk 0:00:50]}  Kg7 {[%clk 0:01:21]} 33. Rhe1 {[%clk 0:00:47]}  a4 {[%clk 0:01:08]} 34. f3 {[%clk 0:00:39]}  Bf7 {[%clk 0:01:05]} 35. f4 {[%clk 0:00:34]}  gxf4 {[%clk 0:01:04]} 36. gxf4 {[%clk 0:00:35]}  Kf6 {[%clk 0:01:04]} 37. Rh1 {[%clk 0:00:34]}  Rg8+ {[%clk 0:01:04]} 38. Kf3 {[%clk 0:00:32]}  h5 {[%clk 0:01:05]} 39. Rf1 {[%clk 0:00:24]}  a3 {[%clk 0:01:03]} 40. bxa3 {[%clk 0:00:19]}  Rxa3 {[%clk 0:01:04]} 41. Ke3 {[%clk 0:00:20]}  Rxc3+ {[%clk 0:01:03]} 42. Kd2 {[%clk 0:00:20]}  Rc4 {[%clk 0:01:03]} 43. f5 {[%clk 0:00:19]}  Rxd4+ {[%clk 0:01:03]} 44. Kc3 {[%clk 0:00:16]}  Kxe5 {[%clk 0:01:04]} 0-1


[Site "https://www.chess.com"]

[Event "Titled Tuesday Blitz November 14 Early 2023"]
[White "rikchessmx"]
[Black "Marcziter, Dmitrii"]
[BlackFideId "13900765"]
[WhiteElo "2323"]
[BlackElo "2399"]
[Result "0-1"]
[Round "11"]
[TimeControl "180+1"]
[Date "2023.11.14"]
[WhiteClock "0:00:00"]
[BlackClock "0:01:03"]
[Board "118"]

1. e4 {[%clk 0:01:46]}  c5 {[%clk 0:02:58]} 2. Nf3 {[%clk 0:01:45]}  a6 {[%clk 0:02:58]} 3. d4 {[%clk 0:01:46]}  cxd4 {[%clk 0:02:57]} 4. Nxd4 {[%clk 0:01:46]}  e6 {[%clk 0:02:57]} 5. Nc3 {[%clk 0:01:46]}  Nc6 {[%clk 0:02:54]} 6. Nxc6 {[%clk 0:01:08]}  bxc6 {[%clk 0:02:54]} 7. Bd3 {[%clk 0:01:09]}  e5 {[%clk 0:02:53]} 8. O-O {[%clk 0:01:08]}  Bc5 {[%clk 0:02:52]} 9. Qe2 {[%clk 0:01:07]}  Nf6 {[%clk 0:02:51]} 10. Be3 {[%clk 0:01:07]}  Be7 {[%clk 0:02:48]} 11. Rad1 {[%clk 0:01:02]}  Qc7 {[%clk 0:02:45]} 12. f4 {[%clk 0:01:01]}  d6 {[%clk 0:02:45]} 13. f5 {[%clk 0:01:01]}  O-O {[%clk 0:02:44]} 14. g4 {[%clk 0:01:00]}  h6 {[%clk 0:02:41]} 15. h4 {[%clk 0:00:59]}  Nh7 {[%clk 0:02:40]} 16. Qh2 {[%clk 0:00:55]}  Qd8 {[%clk 0:02:37]} 17. h5 {[%clk 0:00:54]}  Bg5 {[%clk 0:02:33]} 18. Bf2 {[%clk 0:00:53]}  Nf6 {[%clk 0:02:31]} 19. Qg2 {[%clk 0:00:52]}  d5 {[%clk 0:02:26]} 20. exd5 {[%clk 0:00:49]}  cxd5 {[%clk 0:02:25]} 21. Bc4 {[%clk 0:00:42]}  Bb7 {[%clk 0:02:24]} 22. Nxd5 {[%clk 0:00:42]}  Nxd5 {[%clk 0:02:12]} 23. Bxd5 {[%clk 0:00:41]}  Bxd5 {[%clk 0:02:11]} 24. Qxd5 {[%clk 0:00:42]}  Qc7 {[%clk 0:02:07]} 25. c4 {[%clk 0:00:39]}  Rfd8 {[%clk 0:01:55]} 26. Qe4 {[%clk 0:00:39]}  Rac8 {[%clk 0:01:53]} 27. b3 {[%clk 0:00:38]}  a5 {[%clk 0:01:53]} 28. c5 {[%clk 0:00:37]}  Be7 {[%clk 0:01:46]} 29. Rc1 {[%clk 0:00:36]}  Rd2 {[%clk 0:01:42]} 30. a3 {[%clk 0:00:27]}  Rcd8 {[%clk 0:01:39]} 31. b4 {[%clk 0:00:26]}  axb4 {[%clk 0:01:39]} 32. axb4 {[%clk 0:00:26]}  Bg5 {[%clk 0:01:38]} 33. Rc2 {[%clk 0:00:20]}  R2d3 {[%clk 0:01:33]} 34. b5 {[%clk 0:00:12]}  R3d4 {[%clk 0:01:07]} 35. Bxd4 {[%clk 0:00:08]}  Rxd4 {[%clk 0:01:07]} 36. Qa8+ {[%clk 0:00:08]}  Kh7 {[%clk 0:01:05]} 37. Qg2 {[%clk 0:00:05]}  Be3+ {[%clk 0:01:04]} 38. Kh1 {[%clk 0:00:00]}  Qe7 {[%clk 0:01:03]} 0-1


[Site "https://www.chess.com"]

[Event "Titled Tuesday Blitz November 14 Early 2023"]
[White "Azali, Tannaz"]
[Black "Kornyukov, Alexey"]
[WhiteFideId "12537721"]
[BlackFideId "4150457"]
[WhiteElo "2373"]
[BlackElo "2321"]
[Result "1-0"]
[Round "11"]
[TimeControl "180+1"]
[Date "2023.11.14"]
[WhiteClock "0:00:58"]
[BlackClock "0:00:06"]
[Board "119"]

1. d4 {[%clk 0:02:16]}  Nf6 {[%clk 0:02:58]} 2. c4 {[%clk 0:02:16]}  e6 {[%clk 0:02:58]} 3. Nc3 {[%clk 0:02:15]}  d5 {[%clk 0:02:58]} 4. cxd5 {[%clk 0:02:15]}  exd5 {[%clk 0:02:58]} 5. Bg5 {[%clk 0:02:15]}  Be7 {[%clk 0:02:58]} 6. e3 {[%clk 0:02:16]}  O-O {[%clk 0:02:58]} 7. Bd3 {[%clk 0:02:16]}  c6 {[%clk 0:02:58]} 8. Nge2 {[%clk 0:02:17]}  Be6 {[%clk 0:02:57]} 9. O-O {[%clk 0:02:17]}  h6 {[%clk 0:02:57]} 10. Bh4 {[%clk 0:02:17]}  Nbd7 {[%clk 0:02:56]} 11. f3 {[%clk 0:02:16]}  c5 {[%clk 0:02:53]} 12. Bf2 {[%clk 0:02:15]}  c4 {[%clk 0:02:53]} 13. Bc2 {[%clk 0:02:15]}  Qb6 {[%clk 0:02:52]} 14. a3 {[%clk 0:02:12]}  Rfe8 {[%clk 0:02:29]} 15. Rb1 {[%clk 0:02:07]}  Rad8 {[%clk 0:02:27]} 16. h3 {[%clk 0:02:08]}  Nb8 {[%clk 0:02:24]} 17. e4 {[%clk 0:02:07]}  dxe4 {[%clk 0:02:23]} 18. fxe4 {[%clk 0:02:08]}  Qc7 {[%clk 0:02:04]} 19. Qe1 {[%clk 0:02:05]}  Bd7 {[%clk 0:01:38]} 20. e5 {[%clk 0:02:03]}  Nh5 {[%clk 0:01:36]} 21. Ng3 {[%clk 0:01:53]}  Nxg3 {[%clk 0:01:34]} 22. Bxg3 {[%clk 0:01:53]}  Be6 {[%clk 0:01:29]} 23. Rd1 {[%clk 0:01:52]}  Qb6 {[%clk 0:01:24]} 24. Qe4 {[%clk 0:01:51]}  g6 {[%clk 0:01:19]} 25. Kh1 {[%clk 0:01:33]}  Qxb2 {[%clk 0:01:10]} 26. d5 {[%clk 0:01:16]}  Bxh3 {[%clk 0:00:32]} 27. gxh3 {[%clk 0:01:08]}  Qxc3 {[%clk 0:00:31]} 28. Rf3 {[%clk 0:01:06]}  Qa5 {[%clk 0:00:21]} 29. Rxf7 {[%clk 0:01:03]}  Qb6 {[%clk 0:00:09]} 30. d6 {[%clk 0:01:02]}  Kxf7 {[%clk 0:00:08]} 31. Qxg6+ {[%clk 0:01:01]}  Kf8 {[%clk 0:00:08]} 32. Rf1+ {[%clk 0:00:58]}  Bf6 {[%clk 0:00:06]} 33. Rxf6# {[%clk 0:00:58]} 1-0


[Site "https://www.chess.com"]

[Event "Titled Tuesday Blitz November 14 Early 2023"]
[White "Tuleyeva-Aketayeva, Dana"]
[Black "Dahlgren, James Allen"]
[WhiteFideId "13701932"]
[BlackFideId "22256873"]
[WhiteElo "2299"]
[BlackElo "2151"]
[Result "1-0"]
[Round "11"]
[TimeControl "180+1"]
[Date "2023.11.14"]
[WhiteClock "0:00:57"]
[BlackClock "0:00:19"]
[Board "128"]

1. d4 {[%clk 0:03:00]}  e6 {[%clk 0:02:54]} 2. Nf3 {[%clk 0:03:00]}  c5 {[%clk 0:02:55]} 3. g3 {[%clk 0:02:59]}  Nf6 {[%clk 0:02:56]} 4. Bg2 {[%clk 0:02:59]}  d5 {[%clk 0:02:56]} 5. O-O {[%clk 0:02:59]}  Nc6 {[%clk 0:02:57]} 6. c4 {[%clk 0:02:59]}  cxd4 {[%clk 0:02:56]} 7. Nxd4 {[%clk 0:02:58]}  Bd7 {[%clk 0:02:53]} 8. cxd5 {[%clk 0:02:57]}  exd5 {[%clk 0:02:52]} 9. Nc3 {[%clk 0:02:57]}  Be7 {[%clk 0:02:51]} 10. Nxd5 {[%clk 0:02:54]}  Nxd5 {[%clk 0:02:47]} 11. Bxd5 {[%clk 0:02:54]}  Nxd4 {[%clk 0:02:44]} 12. Qxd4 {[%clk 0:02:53]}  O-O {[%clk 0:02:44]} 13. Rd1 {[%clk 0:02:48]}  Bf6 {[%clk 0:02:41]} 14. Qb4 {[%clk 0:02:40]}  Bc6 {[%clk 0:02:37]} 15. Bxf7+ {[%clk 0:02:27]}  Rxf7 {[%clk 0:02:34]} 16. Rxd8+ {[%clk 0:02:27]}  Rxd8 {[%clk 0:02:35]} 17. Be3 {[%clk 0:02:27]}  Rfd7 {[%clk 0:02:34]} 18. f3 {[%clk 0:02:24]}  b6 {[%clk 0:01:54]} 19. Rc1 {[%clk 0:02:20]}  Bb7 {[%clk 0:01:50]} 20. Qb3+ {[%clk 0:02:15]}  Bd5 {[%clk 0:01:46]} 21. Qa4 {[%clk 0:02:11]}  Bxb2 {[%clk 0:01:40]} 22. Rd1 {[%clk 0:02:03]}  Bf6 {[%clk 0:01:19]} 23. Kf2 {[%clk 0:02:01]}  Bc6 {[%clk 0:01:12]} 24. Qb3+ {[%clk 0:01:54]}  Bd5 {[%clk 0:01:08]} 25. Qa4 {[%clk 0:01:43]}  Bc6 {[%clk 0:01:05]} 26. Qb3+ {[%clk 0:01:38]}  Bd5 {[%clk 0:01:05]} 27. Qa3 {[%clk 0:01:26]}  g6 {[%clk 0:00:57]} 28. h4 {[%clk 0:01:22]}  Kg7 {[%clk 0:00:55]} 29. h5 {[%clk 0:01:19]}  gxh5 {[%clk 0:00:54]} 30. Qc1 {[%clk 0:01:16]}  h4 {[%clk 0:00:38]} 31. Bd4 {[%clk 0:01:10]}  hxg3+ {[%clk 0:00:36]} 32. Kxg3 {[%clk 0:01:10]}  Bxd4 {[%clk 0:00:27]} 33. Rxd4 {[%clk 0:01:10]}  Bf7 {[%clk 0:00:26]} 34. Qg5+ {[%clk 0:01:06]}  Bg6 {[%clk 0:00:19]} 35. Qxd8 {[%clk 0:00:57]} 1-0


[Site "https://www.chess.com"]

[Event "Titled Tuesday Blitz November 14 Early 2023"]
[White "Ismayilova, Khanim"]
[Black "Pumpkin_in_moonlight"]
[WhiteFideId "13429019"]
[WhiteElo "2158"]
[BlackElo "2297"]
[Result "1-0"]
[Round "11"]
[TimeControl "180+1"]
[Date "2023.11.14"]
[WhiteClock "0:00:25"]
[BlackClock "0:00:02"]
[Board "129"]

1. e4 {[%clk 0:03:00]}  e5 {[%clk 0:02:57]} 2. Nf3 {[%clk 0:02:59]}  Nc6 {[%clk 0:02:57]} 3. Bc4 {[%clk 0:02:58]}  Nf6 {[%clk 0:02:56]} 4. d4 {[%clk 0:02:55]}  exd4 {[%clk 0:02:53]} 5. e5 {[%clk 0:02:55]}  d5 {[%clk 0:02:52]} 6. Bb5 {[%clk 0:02:52]}  Ne4 {[%clk 0:02:48]} 7. Nxd4 {[%clk 0:02:52]}  Bd7 {[%clk 0:02:43]} 8. O-O {[%clk 0:02:48]}  Nxd4 {[%clk 0:02:27]} 9. Bxd7+ {[%clk 0:02:47]}  Qxd7 {[%clk 0:02:27]} 10. Qxd4 {[%clk 0:02:47]}  Bc5 {[%clk 0:02:27]} 11. Qd1 {[%clk 0:02:46]}  O-O-O {[%clk 0:02:20]} 12. Nd2 {[%clk 0:02:44]}  Qf5 {[%clk 0:02:13]} 13. Nxe4 {[%clk 0:02:43]}  dxe4 {[%clk 0:02:13]} 14. Qe2 {[%clk 0:02:43]}  Qxe5 {[%clk 0:02:11]} 15. Be3 {[%clk 0:02:43]}  Bxe3 {[%clk 0:02:06]} 16. Qxe3 {[%clk 0:02:43]}  f5 {[%clk 0:02:05]} 17. Qxa7 {[%clk 0:02:38]}  c6 {[%clk 0:02:02]} 18. Qa8+ {[%clk 0:02:34]}  Kc7 {[%clk 0:02:01]} 19. Qa4 {[%clk 0:02:32]}  Rd2 {[%clk 0:01:59]} 20. Rad1 {[%clk 0:02:30]}  Rhd8 {[%clk 0:01:58]} 21. Rxd2 {[%clk 0:02:26]}  Rxd2 {[%clk 0:01:57]} 22. Qb3 {[%clk 0:01:48]}  f4 {[%clk 0:01:50]} 23. Qf7+ {[%clk 0:01:46]}  Rd7 {[%clk 0:01:49]} 24. Qb3 {[%clk 0:01:44]}  e3 {[%clk 0:01:15]} 25. fxe3 {[%clk 0:01:33]}  fxe3 {[%clk 0:01:15]} 26. Re1 {[%clk 0:01:32]}  e2 {[%clk 0:01:13]} 27. Qg3 {[%clk 0:01:29]}  Qxg3 {[%clk 0:01:04]} 28. hxg3 {[%clk 0:01:30]}  Rd2 {[%clk 0:00:58]} 29. Kf2 {[%clk 0:01:29]}  Rxc2 {[%clk 0:00:58]} 30. Rxe2 {[%clk 0:01:29]}  Rxe2+ {[%clk 0:00:51]} 31. Kxe2 {[%clk 0:01:30]}  Kd6 {[%clk 0:00:50]} 32. Kd3 {[%clk 0:01:25]}  Ke5 {[%clk 0:00:48]} 33. a4 {[%clk 0:01:22]}  Kf5 {[%clk 0:00:46]} 34. Kc4 {[%clk 0:00:54]}  Kg4 {[%clk 0:00:35]} 35. Kc5 {[%clk 0:00:54]}  Kxg3 {[%clk 0:00:34]} 36. Kb6 {[%clk 0:00:55]}  Kxg2 {[%clk 0:00:28]} 37. Kxb7 {[%clk 0:00:54]}  h5 {[%clk 0:00:28]} 38. a5 {[%clk 0:00:54]}  h4 {[%clk 0:00:28]} 39. a6 {[%clk 0:00:55]}  h3 {[%clk 0:00:28]} 40. a7 {[%clk 0:00:55]}  h2 {[%clk 0:00:29]} 41. a8=Q {[%clk 0:00:55]}  h1=Q {[%clk 0:00:28]} 42. Kc7 {[%clk 0:00:46]}  Kg3 {[%clk 0:00:21]} 43. Qxc6 {[%clk 0:00:41]}  Qh7 {[%clk 0:00:14]} 44. Qc3+ {[%clk 0:00:34]}  Kg4 {[%clk 0:00:10]} 45. Qd4+ {[%clk 0:00:34]}  Kg5 {[%clk 0:00:09]} 46. Qe5+ {[%clk 0:00:34]}  Kg4 {[%clk 0:00:08]} 47. Qe6+ {[%clk 0:00:33]}  Kf4 {[%clk 0:00:08]} 48. Qd6+ {[%clk 0:00:31]}  Kg5 {[%clk 0:00:07]} 49. Qe7+ {[%clk 0:00:31]}  Kf5 {[%clk 0:00:06]} 50. b4 {[%clk 0:00:30]}  Qh2+ {[%clk 0:00:05]} 51. Qd6 {[%clk 0:00:29]}  Qc2+ {[%clk 0:00:04]} 52. Qc5+ {[%clk 0:00:29]}  Qxc5+ {[%clk 0:00:03]} 53. bxc5 {[%clk 0:00:30]}  g5 {[%clk 0:00:03]} 54. c6 {[%clk 0:00:30]}  g4 {[%clk 0:00:03]} 55. Kd6 {[%clk 0:00:24]}  g3 {[%clk 0:00:03]} 56. c7 {[%clk 0:00:24]}  g2 {[%clk 0:00:03]} 57. c8=Q+ {[%clk 0:00:25]}  Kf4 {[%clk 0:00:03]} 58. Qc1+ {[%clk 0:00:24]}  Kf3 {[%clk 0:00:02]} 59. Qg1 {[%clk 0:00:25]} 1-0


[Site "https://www.chess.com"]

[Event "Titled Tuesday Blitz November 14 Early 2023"]
[White "Skibbe, Willi"]
[Black "Smirnov, Timofey"]
[WhiteFideId "4682190"]
[BlackFideId "24176427"]
[WhiteElo "2239"]
[BlackElo "2104"]
[Result "1-0"]
[Round "11"]
[TimeControl "180+1"]
[Date "2023.11.14"]
[WhiteClock "0:01:07"]
[BlackClock "0:02:04"]
[Board "131"]

1. e4 {[%clk 0:03:00]}  e5 {[%clk 0:02:59]} 2. d4 {[%clk 0:03:00]}  exd4 {[%clk 0:02:59]} 3. Nf3 {[%clk 0:03:01]}  Qe7 {[%clk 0:02:58]} 4. Qxd4 {[%clk 0:02:54]}  Nc6 {[%clk 0:02:57]} 5. Qe3 {[%clk 0:02:54]}  g6 {[%clk 0:02:40]} 6. Nc3 {[%clk 0:02:52]}  Nf6 {[%clk 0:02:36]} 7. e5 {[%clk 0:02:46]}  Nh5 {[%clk 0:02:26]} 8. g4 {[%clk 0:02:30]}  Ng7 {[%clk 0:02:26]} 9. Nd5 {[%clk 0:02:30]}  Qd8 {[%clk 0:02:26]} 10. Nf6+ {[%clk 0:02:29]}  Ke7 {[%clk 0:02:24]} 11. b3 {[%clk 0:02:24]}  Ne8 {[%clk 0:02:20]} 12. Nd5+ {[%clk 0:02:16]}  Ke6 {[%clk 0:02:18]} 13. Bc4 {[%clk 0:02:10]}  Bg7 {[%clk 0:02:04]} 14. Ng5+ {[%clk 0:01:07]} 1-0


[Site "https://www.chess.com"]